bitfinex/quotes_ETHUSD_20251124
["timestamp","ask_amount","ask_price","bid_price","bid_amount"]
[1764025951219,0.002,2966.6,2966.5,4.27740424]
[1764025951588,0.002,2966.6,2966.5,3.37097589]
[1764025951997,0.002,2966.6,2966.5,4.16612018]
[1764025952206,0.002,2966.6,2966.5,5.40820863]
[1764025952985,0.002,2966.6,2966.5,4.89171429]
[1764025956905,0.4796,2966.6,2966.5,4.89171429]
[1764025957084,0.4796,2966.6,2966.5,4.31157]
[1764025959020,0.9545,2966.6,2966.5,5.52050825]
[1764025959319,0.9545,2966.6,2966.5,5.30550825]
[1764025959491,0.9545,2966.6,2966.5,5.52050825]
[1764025959890,0.4796,2966.6,2966.5,5.52050825]
[1764025960608,0.4796,2966.6,2966.5,4.31157]
[1764025960810,0.9545,2966.6,2966.5,4.31157]
[1764025961404,0.9545,2966.6,2966.5,5.52050825]
[1764025961592,0.9545,2966.6,2966.5,5.30550825]
[1764025961799,0.9545,2966.6,2966.5,4.27813254]
[1764025962617,0.9545,2966.6,2966.5,3.37097589]
[1764025964409,0.9545,2966.6,2966.5,4.27813254]
[1764025965047,0.9545,2966.6,2966.5,3.37097589]
[1764025966344,0.9545,2966.6,2966.4,4.27821733]
[1764025966534,0.9525,2966.5,2966.4,4.27821733]
[1764025969031,0.4776,2966.5,2966.4,4.27821733]
[1764025969229,0.002,2966.6,2966.4,7.64930686]
[1764025969729,0.4575,2966.5,2966.4,4.27821733]
[1764025969924,0.4581,2966.6,2966.4,4.27821733]
[1764025969925,0.002,2966.6,2966.4,6.74215021]
[1764025970151,0.002,2966.6,2966.5,0.90776752]
[1764025971350,0.002,2966.6,2966.5,4.27871229]
[1764025971554,0.4739,2966.6,2966.5,4.27871229]
[1764025973058,0.002,2966.6,2966.5,3.37097589]
[1764025973241,0.4739,2966.6,2966.5,3.37097589]
[1764025973835,0.9318,2966.6,2966.5,3.37097589]
[1764025975245,0.4739,2966.6,2966.5,3.37097589]
[1764025975551,0.002,2966.6,2966.5,5.7337319]
[1764025975751,0.4739,2966.6,2966.5,5.7337319]
[1764025975956,0.9318,2966.6,2966.5,5.7337319]
[1764025976129,0.9318,2966.6,2966.5,5.9487319]
[1764025976334,0.4739,2966.6,2966.5,5.9487319]
[1764025976536,0.002,2966.6,2966.5,5.9487319]
[1764025977654,0.002,2966.6,2966.5,5.7337319]
[1764025977860,0.4739,2966.6,2966.5,5.9487319]
[1764025978536,0.9318,2966.6,2966.5,4.57991414]
[1764025979138,0.9318,2966.6,2966.5,3.37097589]
[1764025979522,0.9318,2966.6,2966.5,4.27871977]
[1764025980546,0.9318,2966.6,2966.4,0.90774388]
[1764025980738,0.9298,2966.5,2966.4,3.37105866]
[1764025981347,0.9298,2966.5,2966.3,0.001]
[1764025981569,1.335304,2966.4,2966.3,0.001]
[1764025981864,0.405504,2966.3,2966.0,0.001]
[1764025982039,0.877404,2966.1,2966.0,0.001]
[1764025982241,1.19334303,2966.1,2966.0,0.001]
[1764025982563,1.335304,2966.1,2966.0,0.001]
[1764025982930,1.65103257,2966.1,2966.0,0.001]
[1764025984265,1.88869524,2966.1,2966.0,0.001]
[1764025986365,1.57296667,2966.1,2966.0,0.001]
[1764025989579,1.78796667,2966.1,2966.0,0.001]
[1764025990143,26.63104235,2966.1,2966.0,0.001]
[1764025990452,27.35663646,2966.1,2966.0,0.001]
[1764025991548,14.19762497,2966.1,2966.0,0.001]
[1764025991784,10.08884797,2966.1,2966.0,0.001]
[1764025992271,2.82863897,2966.1,2966.0,0.001]
[1764025992569,4.93166497,2966.1,2966.0,0.001]
[1764025992971,8.30309546,2966.1,2966.0,0.001]
[1764025993337,12.97734446,2966.1,2966.0,0.001]
[1764025994246,2.82863897,2966.1,2966.0,0.001]
[1764025994476,5.42060197,2966.1,2966.0,0.001]
[1764025994856,2.82863897,2966.1,2966.0,0.001]
[1764025995517,6.68087897,2966.1,2966.0,0.001]
[1764025996649,2.82863897,2966.1,2966.0,0.001]
[1764025996987,7.92090297,2966.1,2966.0,0.001]
[1764025997478,2.82863897,2966.1,2966.0,0.001]
[1764025997785,5.73165297,2966.1,2966.0,0.001]
[1764025997946,5.22365297,2966.1,2966.0,0.001]
[1764025998878,8.59508346,2966.1,2966.0,0.001]
[1764025999085,8.59508346,2966.1,2964.9,4.92079849]
[1764025999086,0.405504,2965.5,2964.9,4.92079849]
[1764025999282,0.877404,2965.5,2964.9,4.92079849]
[1764025999581,1.335304,2965.5,2964.9,4.92079849]
[1764026001261,1.335304,2965.5,2965.0,6.74536256]
[1764026001676,0.495,2965.4,2965.0,6.74536256]
[1764026002463,0.495,2965.4,2965.0,6.69536256]
[1764026004300,0.405504,2965.6,2965.3,0.0011]
[1764026004794,0.405504,2965.6,2965.3,4.92189849]
[1764026005402,0.215,2965.7,2965.3,0.0011]
[1764026006697,0.215,2965.7,2965.6,0.0011]
[1764026006875,0.215,2965.7,2965.2,6.74490758]
[1764026007080,0.71,2965.7,2965.2,6.74490758]
[1764026007271,0.002,2965.6,2965.2,6.74490758]
[1764026007468,0.497,2965.6,2965.2,6.74490758]
[1764026007794,0.002,2965.6,2965.2,6.74490758]
[1764026007980,0.002,2965.6,2965.2,8.44545984]
[1764026009378,0.002,2965.6,2965.2,9.35320372]
[1764026010676,0.002,2965.6,2965.3,0.90774388]
[1764026011406,0.31797798,2965.6,2965.4,0.90774388]
[1764026012001,0.31797798,2965.6,2965.5,3.37211262]
[1764026012579,0.31797798,2965.6,2965.4,4.27992202]
[1764026012780,0.002,2965.6,2965.4,4.27992202]
[1764026013106,0.497,2965.6,2965.4,4.27992202]
[1764026013277,0.002,2965.6,2965.4,4.27992202]
[1764026013475,0.002,2965.6,2965.4,7.65214836]
[1764026014017,0.31839123,2965.6,2965.4,7.65214836]
[1764026014181,0.002,2965.6,2965.4,7.65214836]
[1764026016709,0.002,2965.6,2965.5,4.92079849]
[1764026017008,0.3184028,2965.6,2965.5,4.92079849]
[1764026017816,0.3184028,2965.6,2965.4,7.65214836]
[1764026017999,0.002,2965.6,2965.5,0.0011]
[1764026018208,0.31841944,2965.6,2965.5,0.0022]
[1764026018683,0.31841944,2965.6,2965.5,0.0011]
[1764026019293,0.31841944,2965.6,2965.5,0.90884388]
[1764026020292,0.81341944,2965.6,2965.5,0.90774388]
[1764026020613,0.405504,2965.5,2965.2,0.90774388]
[1764026020915,0.405504,2965.3,2965.1,0.90774388]
[1764026021086,0.495,2965.1,2965.0,4.28142297]
[1764026021283,0.405504,2965.3,2965.0,4.28142297]
[1764026021620,0.31635602,2965.2,2965.1,0.90774388]
[1764026021783,0.31635602,2965.3,2965.0,7.65410425]
[1764026021985,0.405504,2965.5,2965.1,0.90884388]
[1764026022192,0.31635813,2965.4,2965.1,0.90884388]
[1764026022417,0.31635813,2965.3,2965.2,3.37245379]
[1764026022612,0.31635813,2965.4,2965.2,6.74600758]
[1764026022813,0.216,2965.6,2965.2,7.65375146]
[1764026023014,0.216,2965.6,2965.3,0.0011]
[1764026023015,0.31635045,2965.5,2965.3,0.0011]
[1764026023216,0.31635045,2965.4,2965.3,0.0011]
[1764026024397,0.31635045,2965.5,2965.3,0.91242835]
[1764026024624,0.81129885,2965.4,2965.2,4.28378214]
[1764026024828,0.495,2965.3,2965.2,4.28378214]
[1764026025030,0.497,2965.5,2965.2,7.65623593]
[1764026025195,0.31630009,2965.4,2965.2,7.65733593]
[1764026025728,0.002,2965.5,2965.3,0.91242835]
[1764026025900,0.002,2965.5,2965.4,0.0011]
[1764026026098,0.31830348,2965.5,2965.4,0.0011]
[1764026026501,0.31830348,2965.5,2965.4,3.37332634]
[1764026028027,0.31830348,2965.5,2965.4,3.37222634]
[1764026028218,0.81270348,2965.5,2965.3,4.49766303]
[1764026028427,0.4964,2965.5,2965.3,4.28366303]
[1764026028600,0.4964,2965.5,2965.3,7.65600309]
[1764026028802,0.002,2965.5,2965.3,7.65600309]
[1764026029018,0.31830729,2965.5,2965.3,7.65600309]
[1764026031430,0.31830729,2965.5,2965.3,7.65595552]
[1764026031612,0.002,2965.5,2965.4,4.28350712]
[1764026031799,0.31830777,2965.5,2965.4,3.37222634]
[1764026032235,0.31830777,2965.5,2965.4,3.37332634]
[1764026032809,0.002,2965.5,2965.4,4.28460712]
[1764026034010,0.002,2965.5,2965.4,5.17119513]
[1764026034210,0.002,2965.5,2965.4,5.17229513]
[1764026034427,0.002,2965.5,2965.4,5.17119513]
[1764026035124,0.002,2965.5,2965.4,4.28460712]
[1764026037637,0.002,2965.5,2965.4,4.28350712]
[1764026038336,0.9235,2965.5,2965.4,0.91128078]
[1764026038525,0.002,2965.5,2965.4,4.28350712]
[1764026039136,0.4591,2965.5,2965.4,4.28350712]
[1764026040367,0.002,2965.5,2965.4,4.28350712]
[1764026040536,0.002,2965.5,2965.4,4.28460712]
[1764026041434,0.002,2965.5,2965.4,4.26101431]
[1764026041633,0.002,2965.5,2965.4,5.46995256]
[1764026041962,0.002,2965.5,2965.4,4.26101431]
[1764026042652,0.002,2965.5,2965.4,7.38910012]
[1764026042860,0.002,2965.5,2965.4,7.5242195]
[1764026043227,0.002,2965.5,2965.4,5.1217278]
[1764026043428,0.002,2965.8,2965.6,6.74399784]
[1764026043668,0.002,2965.8,2965.7,5.88319842]
[1764026043876,0.002,2965.9,2965.7,9.06917978]
[1764026044077,0.002,2965.9,2965.8,0.0022]
[1764026044566,0.002,2965.9,2965.8,0.13730569]
[1764026045775,0.002,2965.9,2965.8,4.26838903]
[1764026045934,0.002,2965.9,2965.8,5.5538469]
[1764026046667,0.002,2965.9,2965.8,5.58756461]
[1764026047354,0.002,2965.9,2965.8,5.5538469]
[1764026048971,0.002,2965.9,2965.8,6.24210736]
[1764026049579,0.002,2965.9,2965.8,8.26792279]
[1764026050080,0.002,2965.9,2965.8,6.45610736]
[1764026050243,0.002,2965.9,2965.8,8.26725766]
[1764026051571,0.002,2965.9,2965.8,8.05325766]
[1764026051882,0.002,2965.9,2965.8,6.45610736]
[1764026052080,0.002,2965.9,2965.8,6.24100736]
[1764026052279,0.002,2965.9,2965.8,5.41654121]
[1764026052471,0.002,2965.9,2965.8,5.63054121]
[1764026053182,0.002,2965.9,2965.8,5.41654121]
[1764026053347,0.002,2965.9,2965.8,5.63054121]
[1764026053986,0.002,2965.9,2965.8,10.55146043]
[1764026054179,0.002,2965.9,2965.8,10.55256043]
[1764026054859,0.002,2965.9,2965.8,11.54617354]
[1764026055059,0.002,2965.9,2965.8,11.76017354]
[1764026055286,0.002,2965.9,2965.8,11.89528516]
[1764026055888,0.002,2965.9,2965.8,10.68657205]
[1764026056455,1.1041,2965.9,2965.8,5.00340713]
[1764026056657,1.1041,2965.9,2965.8,4.31136563]
[1764026056949,0.4591,2965.9,2965.8,9.23228485]
[1764026058186,0.4591,2965.9,2965.8,9.23328485]
[1764026058982,0.002,2965.9,2965.8,10.93621766]
[1764026059184,0.002,2965.9,2965.8,11.84225916]
[1764026061800,0.002,2965.9,2965.8,10.13932635]
[1764026062470,0.002,2965.9,2965.8,9.23328485]
[1764026063981,0.002,2965.9,2965.8,9.23438485]
[1764026066167,0.002,2965.9,2965.8,9.23328485]
[1764026067271,0.4824,2965.9,2965.8,10.44089796]
[1764026068101,0.002,2965.9,2965.8,10.44089796]
[1764026068267,0.4824,2965.9,2965.8,10.22689796]
[1764026068467,0.002,2965.9,2965.8,12.33370296]
[1764026068980,0.002,2965.9,2965.8,12.33260296]
[1764026069183,0.002,2965.9,2965.8,11.12498985]
[1764026069972,0.002,2965.9,2965.8,12.93724015]
[1764026070168,0.002,2965.9,2965.8,12.72214015]
[1764026070510,0.002,2965.9,2965.8,12.93614015]
[1764026071105,0.002,2965.9,2965.8,12.93724015]
[1764026071497,0.002,2965.9,2965.8,11.12608985]
[1764026072003,0.002,2965.9,2965.8,11.26229965]
[1764026073770,0.002,2966.1,2965.8,14.63407117]
[1764026073970,0.002,2966.1,2966.0,0.72669411]
[1764026074499,0.002,2966.1,2966.0,0.13729565]
[1764026074708,0.002,2966.1,2966.0,0.47529565]
[1764026074877,0.002,2966.1,2966.0,0.13729565]
[1764026075304,0.002,2966.1,2966.0,3.50773981]
[1764026075483,0.002,2966.1,2966.0,6.12613892]
[1764026076326,0.002,2966.1,2966.0,8.54969863]
[1764026076532,0.002,2966.1,2966.0,6.33903892]
[1764026077232,0.002,2966.1,2966.0,8.76479863]
[1764026077535,0.002,2966.1,2966.0,6.34013892]
[1764026077700,0.002,2966.1,2966.0,6.12613892]
[1764026077900,0.002,2966.1,2966.0,6.34013892]
[1764026078101,0.002,2966.1,2966.0,6.12503892]
[1764026078303,0.002,2966.1,2966.0,6.33903892]
[1764026078804,0.002,2966.1,2966.0,6.12503892]
[1764026079006,0.002,2966.1,2966.0,6.33903892]
[1764026080606,0.002,2966.1,2966.0,6.12393892]
[1764026080805,0.002,2966.1,2966.0,6.33793892]
[1764026081345,0.002,2966.1,2966.0,6.12393892]
[1764026081507,0.4824,2966.1,2966.0,6.33793892]
[1764026081702,0.002,2966.1,2966.0,6.33793892]
[1764026081908,0.002,2966.1,2966.0,6.33903892]
[1764026082407,0.002,2966.1,2966.0,6.33793892]
[1764026084452,0.4824,2966.1,2966.0,4.44623392]
[1764026084650,0.9781,2966.1,2966.0,9.36292043]
[1764026085058,0.4824,2966.1,2966.0,9.36292043]
[1764026085619,0.002,2966.1,2966.0,9.36292043]
[1764026085814,0.4824,2966.1,2966.0,9.14892043]
[1764026086020,0.9781,2966.1,2966.0,9.36292043]
[1764026086219,0.9781,2966.1,2966.0,9.14892043]
[1764026086539,0.9781,2966.1,2966.0,9.36292043]
[1764026087057,0.9781,2966.1,2966.0,9.14892043]
[1764026087243,0.9781,2966.1,2966.0,9.22782478]
[1764026089164,0.002,2966.1,2966.0,11.04588053]
[1764026089462,0.002,2966.1,2966.0,12.58664383]
[1764026090034,0.464,2966.1,2966.0,12.37154383]
[1764026090374,0.002,2966.1,2966.0,11.04698053]
[1764026090749,0.464,2966.1,2966.0,11.04588053]
[1764026091456,0.002,2966.1,2966.0,11.04698053]
[1764026091843,0.002,2966.1,2966.0,11.54298053]
[1764026092043,0.464,2966.1,2966.0,11.54298053]
[1764026092271,0.002,2966.1,2966.0,13.03564383]
[1764026093331,0.464,2966.1,2966.0,12.82054383]
[1764026093669,0.9591,2966.1,2966.0,13.03454383]
[1764026094032,0.9591,2966.1,2966.0,11.21648808]
[1764026094232,0.9591,2966.1,2966.0,6.41229402]
[1764026094574,0.464,2966.1,2966.0,6.12919402]
[1764026094769,0.9591,2966.1,2966.0,6.12919402]
[1764026094971,0.464,2966.1,2966.0,6.12919402]
[1764026096471,0.464,2966.1,2966.0,11.04588053]
[1764026096841,0.002,2966.1,2966.0,11.04588053]
[1764026097043,0.002,2966.1,2966.0,12.58484383]
[1764026097241,0.002,2966.1,2966.0,12.58374383]
[1764026099072,0.464,2966.1,2966.0,11.04588053]
[1764026099276,0.9591,2966.1,2966.0,11.04588053]
[1764026101149,0.002,2966.1,2966.0,11.04698053]
[1764026101582,0.002,2966.1,2966.0,11.04588053]
[1764026103770,0.464,2966.1,2966.0,11.04588053]
[1764026105853,0.9591,2966.1,2966.0,6.12919402]
[1764026106581,0.9591,2966.1,2966.0,3.37154416]
[1764026106880,0.9591,2966.1,2966.0,4.58537697]
[1764026107058,0.9591,2966.1,2966.0,3.37154416]
[1764026107254,0.464,2966.1,2966.0,3.37154416]
[1764026107479,0.002,2966.1,2966.0,4.68051598]
[1764026107682,0.002,2966.1,2966.0,4.68161598]
[1764026107886,0.002,2966.1,2966.0,4.71533142]
[1764026108180,0.002,2966.1,2966.0,7.96806865]
[1764026108383,0.002,2966.2,2966.0,7.96806865]
[1764026108570,0.002,2966.3,2966.2,10.55896713]
[1764026108773,0.002,2966.3,2966.2,0.72669411]
[1764026109083,0.002,2966.3,2966.2,5.85738062]
[1764026109282,0.002,2966.3,2966.2,8.28262557]
[1764026109469,0.002,2966.3,2966.2,12.98531208]
[1764026109675,0.002,2966.3,2966.2,9.37759739]
[1764026109870,0.002,2966.3,2966.2,12.74781422]
[1764026110096,0.002,2966.3,2966.2,12.96181422]
[1764026110383,0.002,2966.3,2966.2,10.53766927]
[1764026110883,0.464,2966.3,2966.2,10.32256927]
[1764026111181,0.464,2966.3,2966.2,9.22759745]
[1764026111380,0.002,2966.3,2966.2,9.22759745]
[1764026112758,0.464,2966.3,2966.2,9.22759745]
[1764026113918,0.002,2966.3,2966.2,14.14538396]
[1764026114130,0.002,2966.3,2966.2,16.35772891]
[1764026114286,0.002,2966.3,2966.2,18.34305437]
[1764026114492,0.002,2966.3,2966.2,18.55705437]
[1764026114825,0.002,2966.3,2966.2,11.21512291]
[1764026115401,0.002,2966.3,2966.2,16.13180942]
[1764026115923,0.002,2966.3,2966.2,18.55815437]
[1764026116288,0.002,2966.3,2966.2,18.34415437]
[1764026116496,0.002,2966.3,2966.2,18.55815437]
[1764026116714,0.002,2966.3,2966.2,18.34305437]
[1764026116920,0.002,2966.3,2966.2,18.55705437]
[1764026117293,0.002,2966.3,2966.2,18.555933]
[1764026117496,0.002,2966.6,2966.3,0.0011]
[1764026117705,0.002,2966.6,2966.5,5.64338062]
[1764026118095,0.002,2966.6,2966.5,5.77844799]
[1764026119033,0.002,2966.6,2966.5,0.86176148]
[1764026119213,0.002,2966.6,2966.5,4.44563737]
[1764026119518,0.9591,2966.6,2966.5,4.44563737]
[1764026119710,0.9591,2966.6,2966.5,5.81563024]
[1764026120299,0.464,2966.6,2966.5,5.81563024]
[1764026121222,0.464,2966.6,2966.5,10.73231675]
[1764026121518,0.464,2966.6,2966.5,12.54829544]
[1764026122288,0.002,2966.6,2966.5,12.54829544]
[1764026122487,0.002,2966.6,2966.5,10.73341675]
[1764026122999,0.4982,2966.6,2966.5,5.81563024]
[1764026123213,0.4982,2966.6,2966.5,7.63147602]
[1764026124615,0.002,2966.6,2966.5,7.63257602]
[1764026124816,0.002,2966.6,2966.5,5.81673024]
[1764026126910,0.002,2966.6,2966.5,5.81563024]
[1764026127307,0.9737,2966.6,2966.5,5.60163024]
[1764026127507,0.9737,2966.6,2966.5,6.04680852]
[1764026127702,0.9737,2966.6,2966.5,5.40014704]
[1764026127898,0.9737,2966.6,2966.5,3.58497589]
[1764026128301,0.9737,2966.6,2966.5,3.37097589]
[1764026128632,0.002,2966.6,2966.5,3.58597589]
[1764026128937,0.002,2966.6,2966.5,5.44653665]
[1764026129704,0.002,2966.6,2966.5,7.2617078]
[1764026129906,0.002,2966.6,2966.5,7.2628078]
[1764026130106,0.002,2966.6,2966.5,6.17323076]
[1764026130841,0.4982,2966.6,2966.5,6.17213076]
[1764026131013,0.4982,2966.6,2966.5,7.98761312]
[1764026131340,0.4982,2966.6,2966.5,7.77361312]
[1764026131521,0.4982,2966.6,2966.5,6.17213076]
[1764026132034,0.4982,2966.6,2966.5,7.9878679]
[1764026133621,0.002,2966.6,2966.5,7.9878679]
[1764026133824,0.002,2966.6,2966.5,6.17323076]
[1764026135546,0.002,2966.6,2966.5,6.17213076]
[1764026135708,0.002,2966.6,2966.5,6.17323076]
[1764026136111,0.002,2966.6,2966.5,6.17213076]
[1764026137144,0.4982,2966.6,2966.5,5.95813076]
[1764026137332,0.9737,2966.6,2966.5,6.17213076]
[1764026138329,0.9737,2966.6,2966.5,6.16496989]
[1764026138516,0.9737,2966.6,2966.5,3.37197589]
[1764026138716,0.9737,2966.6,2966.5,4.58514389]
[1764026140246,0.9737,2966.6,2966.5,3.37197589]
[1764026140950,0.9737,2966.6,2966.5,0.001]
[1764026141266,1.28976373,2966.6,2966.5,0.001]
[1764026145052,0.9737,2966.6,2966.5,0.001]
[1764026148327,1.379204,2966.6,2966.5,0.001]
[1764026148545,2.16962579,2966.6,2966.5,0.001]
[1764026149947,1.6944362,2966.6,2966.5,0.001]
[1764026150462,1.379204,2966.6,2966.5,0.001]
[1764026151566,1.593204,2966.6,2966.5,0.001]
[1764026151735,1.90824992,2966.6,2966.5,0.001]
[1764026151936,6.00470629,2966.6,2966.5,0.001]
[1764026152256,7.4341629,2966.6,2966.5,0.001]
[1764026152643,4.06330064,2966.6,2966.5,0.001]
[1764026154060,2.63384403,2966.6,2966.5,0.001]
[1764026154976,6.00470629,2966.6,2966.5,0.001]
[1764026156074,2.63384403,2966.6,2966.5,0.001]
[1764026156372,6.00470629,2966.6,2966.5,0.001]
[1764026156975,2.63384403,2966.6,2966.5,0.001]
[1764026157282,6.60537123,2966.6,2966.5,0.001]
[1764026158387,3.23450897,2966.6,2966.5,0.001]
[1764026161851,6.60537123,2966.6,2966.5,0.001]
[1764026162279,0.31704592,2966.6,2966.5,0.0021]
[1764026162463,0.002,2966.7,2966.5,2.18112649]
[1764026162781,0.6923,2968.6,2966.9,0.72559411]
[1764026162982,0.187,2967.9,2967.1,0.72669411]
[1764026163149,0.6653,2967.9,2967.1,0.72669411]
[1764026163354,0.6653,2967.9,2967.1,0.94179411]
[1764026163555,0.6653,2967.9,2967.1,2.15063571]
[1764026164283,0.4783,2968.3,2967.1,2.15063571]
[1764026164779,0.4783,2968.3,2967.1,5.97342027]
[1764026164969,0.4783,2968.3,2967.1,7.86631211]
[1764026165688,0.6653,2967.9,2967.1,5.99098017]
[1764026169251,0.6653,2967.9,2967.1,5.98988017]
[1764026169457,0.4783,2967.7,2967.1,6.20388017]
[1764026169981,0.187,2967.9,2967.1,6.20498017]
[1764026171959,0.187,2967.9,2967.1,5.99098017]
[1764026172165,0.187,2967.9,2967.1,6.20498017]
[1764026172655,0.4783,2967.6,2967.1,6.20388017]
[1764026173250,0.4783,2967.6,2967.1,6.68218017]
[1764026173694,0.4783,2967.5,2967.1,6.68108017]
[1764026174311,0.4783,2967.5,2967.1,6.46708017]
[1764026174611,0.4783,2967.5,2967.1,6.68108017]
[1764026175610,0.4783,2967.5,2967.1,6.68218017]
[1764026176114,0.187,2967.9,2967.1,6.68218017]
[1764026176318,0.187,2967.9,2967.1,6.68328017]
[1764026176618,0.4783,2968.1,2967.1,13.36314758]
[1764026178803,0.002,2967.5,2967.1,13.36314758]
[1764026179903,0.002,2967.5,2967.1,6.68218017]
[1764026180976,0.002,2967.5,2967.1,6.68328017]
[1764026181419,0.002,2967.5,2967.1,6.46928017]
[1764026181706,0.002,2967.5,2967.1,6.68328017]
[1764026182286,0.002,2967.5,2967.1,6.68218017]
[1764026185110,0.4551,2967.5,2967.1,6.46708017]
[1764026185288,0.002,2967.5,2967.1,6.68218017]
[1764026186581,0.002,2967.5,2967.1,7.89102177]
[1764026187109,0.002,2967.5,2967.1,6.68218017]
[1764026187424,0.002,2967.5,2967.1,7.89102177]
[1764026188383,0.002,2967.5,2967.1,6.68218017]
[1764026189398,0.002,2967.5,2967.1,8.49544257]
[1764026189808,0.002,2967.5,2967.1,8.49654257]
[1764026190228,0.002,2967.5,2967.1,13.36314758]
[1764026191538,0.002,2967.5,2967.1,15.78586518]
[1764026192399,0.002,2967.5,2967.1,13.36314758]
[1764026193116,1e-08,2967.5,2967.4,0.0011]
[1764026193290,1e-08,2967.5,2967.4,0.0022]
[1764026193489,1e-08,2967.5,2967.4,0.4309621]
[1764026194098,1e-08,2967.5,2967.4,4.5265097]
[1764026194400,1e-08,2967.5,2967.4,5.1602097]
[1764026194800,1e-08,2967.5,2967.4,5.1591097]
[1764026194998,1e-08,2967.5,2967.4,5.1602097]
[1764026197135,1e-08,2967.5,2967.4,5.2532097]
[1764026197901,1e-08,2967.5,2967.4,5.1602097]
[1764026198126,1e-08,2967.5,2967.4,5.3742097]
[1764026198435,1e-08,2967.5,2967.4,5.3731097]
[1764026199631,1e-08,2967.5,2967.4,5.3742097]
[1764026200827,1e-08,2967.5,2967.4,5.3731097]
[1764026201841,0.49500001,2967.5,2967.4,5.1580097]
[1764026202140,0.94810001,2967.5,2967.4,5.3720097]
[1764026202311,0.94810001,2967.5,2967.4,4.7383097]
[1764026202837,0.94810001,2967.5,2967.4,4.5243097]
[1764026203043,0.94810001,2967.5,2967.4,4.3095476]
[1764026206551,0.94810001,2967.5,2967.4,6.12374797]
[1764026206846,0.94810001,2967.5,2967.4,5.90974797]
[1764026207147,0.94810001,2967.5,2967.4,4.57966686]
[1764026207347,0.94810001,2967.5,2967.3,3.37006247]
[1764026207547,0.8125,2967.4,2967.3,3.37006247]
[1764026208043,0.8125,2967.4,2967.2,3.37014326]
[1764026208242,0.8125,2967.4,2966.9,0.001]
[1764026208243,0.4844,2967.3,2967.1,3.37024491]
[1764026208753,0.4669,2967.2,2967.1,3.37024491]
[1764026209047,0.405504,2967.1,2966.6,0.001]
[1764026209249,3.37002062,2967.4,2966.6,0.001]
[1764026209250,0.6629,2966.7,2966.6,0.001]
[1764026209744,1.1473,2966.7,2966.6,0.001]
[1764026210158,1.552804,2966.7,2966.6,0.001]
[1764026210310,1.552804,2966.7,2966.5,0.001]
[1764026210515,1.248904,2966.6,2966.5,0.001]
[1764026211541,1.248904,2966.6,2966.3,0.001]
[1764026211741,0.859604,2966.4,2966.3,0.001]
[1764026212115,1.355604,2966.4,2966.3,0.001]
[1764026216651,0.9501,2966.4,2966.3,0.001]
[1764026221530,1.569604,2966.4,2966.3,0.001]
[1764026222955,0.9501,2966.4,2966.3,0.001]
[1764026223867,0.196,2966.7,2966.3,0.4837]
[1764026224055,1e-08,2967.5,2966.6,6.86921589]
[1764026224265,1e-08,2967.5,2967.4,0.4827]
[1764026224573,1e-08,2967.5,2967.4,4.01965349]
[1764026226070,0.96170001,2967.5,2967.4,3.36995349]
[1764026226955,0.96170001,2967.5,2967.2,6.74013575]
[1764026227159,0.3438,2967.3,2967.2,3.3700677]
[1764026228440,1e-08,2967.5,2967.2,6.74024834]
[1764026228975,1e-08,2967.5,2967.4,0.4827]
[1764026229182,1e-08,2967.5,2967.4,3.85265349]
[1764026229483,0.46570001,2967.5,2967.4,3.36995349]
[1764026230379,1e-08,2967.5,2967.4,3.36995349]
[1764026230949,1e-08,2967.5,2967.4,4.84390074]
[1764026231473,1e-08,2967.5,2967.4,4.36120074]
[1764026232869,1e-08,2967.5,2967.4,4.84390074]
[1764026233674,0.46570001,2967.5,2967.4,3.36995349]
[1764026235875,0.96170001,2967.5,2967.4,3.36995349]
[1764026236451,1e-08,2967.5,2967.4,3.36995349]
[1764026237381,1e-08,2967.5,2967.4,3.40365302]
[1764026237882,1e-08,2967.5,2967.4,3.36995349]
[1764026238777,0.46570001,2967.5,2967.4,3.36995349]
[1764026238959,0.96170001,2967.5,2967.4,3.36995349]
[1764026239370,0.96170001,2967.5,2966.8,3.37063502]
[1764026239554,0.6548,2966.9,2966.5,10.1139038]
[1764026239753,0.3426,2966.8,2966.6,0.72559411]
[1764026239950,1e-08,2967.5,2966.8,0.471]
[1764026240186,0.4688,2967.4,2966.8,0.471]
[1764026240447,0.4688,2967.4,2966.9,0.03370521]
[1764026240685,0.4688,2967.4,2966.8,0.471]
[1764026240890,0.4688,2967.4,2966.5,6.74292791]
[1764026240891,0.6866,2966.9,2966.5,6.74292791]
[1764026241097,0.1885,2966.9,2966.5,10.1139038]
[1764026241262,0.1885,2966.9,2966.6,0.72559411]
[1764026241588,0.1885,2966.9,2966.6,0.75930273]
[1764026241792,0.1885,2966.9,2966.7,6.74149728]
[1764026242081,0.1885,2966.9,2966.8,0.03370635]
[1764026242450,0.1885,2966.9,2966.7,6.74149728]
[1764026242451,0.6866,2966.9,2966.7,6.74149728]
[1764026242662,0.338,2966.8,2966.7,4.09634275]
[1764026242869,0.8068,2966.8,2966.7,4.09634275]
[1764026243484,0.8068,2966.8,2966.7,3.37074864]
[1764026244290,0.8068,2966.8,2966.5,3.37195202]
[1764026244470,0.4688,2967.2,2966.5,4.45602454]
[1764026245177,0.4688,2967.2,2966.5,3.37195202]
[1764026246263,0.002,2966.9,2966.5,3.37195202]
[1764026246769,0.6593,2966.9,2966.5,3.37195202]
[1764026247461,0.002,2966.9,2966.8,0.471]
[1764026248494,0.002,2966.9,2966.8,4.29983502]
[1764026248788,0.002,2966.9,2966.8,5.18731876]
[1764026249364,0.002,2966.9,2966.8,5.91291287]
[1764026250295,1e-08,2967.5,2967.3,6.38651589]
[1764026250488,1e-08,2967.5,2967.4,6.15426692]
[1764026250696,1e-08,2967.5,2967.4,5.4057476]